Cogmind - Beta 16 @@@ ROGUE MODE // 2026.01.29 @ 21:58:49 Player: Assis Result: Destroyed by G-34 Mercenary with Small Laser Performance ------------- Evolutions (0) 0 Regions Visited (1) 200 Robots Destroyed (16) 80 Value Destroyed (331) 331 Prototype IDs (0) 0 Alien Tech Used (0) 0 Bonus (0) 0 TOTAL SCORE: 611 Bonus ------- None Cogmind --------- Core Integrity 0/250 Matter 282/300 Energy 160/160 System Corruption 0% Temperature Cool (8) Movement Core (1450) Ox28 Location -10/Materials Parts ------- > --- POWER (1) -------- Light Nuclear Core > --- PROPULSION (2) --- (None) > --- UTILITY (2) ------ Huge Storage Unit > --- WEAPON (2) ------- Light Assault Rifle > --- INVENTORY (25) --- Light Ion Engine Light Ion Engine Light Ion Engine Flight Unit Flight Unit Flight Unit Flight Unit Small Storage Unit Structural Scanner Terrain Scanner Light Assault Rifle Grenade Launcher Peak State ------------ > --- POWER ------------ Ion Engine > --- PROPULSION ------- Light Treads Light Treads > --- UTILITY ---------- Small Storage Unit Seismic Detector > --- WEAPON ----------- Light Assault Rifle Light Assault Rifle > --- INVENTORY -------- Light Ion Engine [Rating: 7] Favorites ----------- Power Ion Engine Engine Ion Engine Power Core Light Nuclear Core Propulsion Light Treads Treads Light Treads Utility Huge Storage Unit Device Seismic Detector Storage Huge Storage Unit Weapon Light Assault Rifle Energy Gun Medium Laser Ballistic Gun Light Assault Rifle Build | -11 -10 ------- Run | Yrd Mat Slots Evolved . | . . Power . | . . Propulsion . | . . Utility . | . . Weapon . | . . Parts Attached 12 | 8 4 Power 3 | 1 2 Engine 2 | 1 1 Core 1 | . 1 Reactor . | . . Propulsion 2 | 2 . Treads 2 | 2 . Leg . | . . Wheel . | . . Hover . | . . Flight . | . . Utility 3 | 2 1 Device 1 | 1 . Storage 2 | 1 1 Processor . | . . Hackware . | . . Protection . | . . Artifact . | . . Weapon 4 | 3 1 Energy Gun 1 | 1 . Energy Cannon . | . . Ballistic Gun 3 | 2 1 Ballistic Cannon . | . . Launcher . | . . Special Weapon . | . . Impact Weapon . | . . Slashing Weapon . | . . Piercing Weapon . | . . Special Melee Weapon . | . . Unidentified Prototypes . | . . Parts Lost 5 | . 5 Power 1 | . 1 Propulsion 2 | . 2 Utility 1 | . 1 Weapon 1 | . 1 Highest Loss Streak 3 | . 3 To Critical Strikes . | . . Average Backups 5 | . 6 Power 1 | . 1 Propulsion . | . 1 Utility 2 | . 2 Weapon . | . 1 Tool/Special . | . . Unused Backups 10 | . 10 Power 3 | . 3 Propulsion 4 | . 4 Utility 2 | . 2 Weapon 1 | . 1 Tool/Special . | . . Average Slot Usage (%) 92 | . 92 Engine 13 | . 13 Treads 26 | . 26 Device 9 | . 9 Storage 14 | . 14 Ballistic Gun 27 | . 27 Peak Build Rating 7 | 7 7 Average Rating 6 | 5 6 On Entrance 3 | . 7 Avg Prop Armor Cover (%) . | . . Naked Turns . | . . Heaviest Build 88 | 13 88 Greatest Support 40 | 40 40 Greatest Overweight (x) 26 | . 26 Average Overweight (x) 1 | . 2 Largest Inventory Capacity 25 | 8 25 Average Capacity 21 | 7 24 Most Carried 12 | 1 12 Average Carried 5 | . 6 Final Capacity 25 | 8 25 Final Carried 12 | 1 12 Class Distribution -------------------- 100% | Mutant Dominant Class ---------------- Mutant | -10/Materials Resources | -11 -10 ----------- Run | Yrd Mat Matter Collected 443 | 278 165 Remotely . | . . Salvage Created 555 | 140 415 Parts 49 | 13 36 Haulers Intercepted . | . . Recyclers Shooed 1 | 1 . Parts Field Recycled . | . . Retrieved Matter . | . . Parts Self-Destructed . | . . Prevented . | . . Parts Restored . | . . Kills | -11 -10 ------- Run | Yrd Mat Combat Hostiles Destroyed 10 | . 10 Guns 10 | . 10 Classes Destroyed 5 | 2 3 Builder 2 | . 2 Tunneler 3 | 3 . Recycler 1 | 1 . Swarmer 3 | . 3 Grunt 7 | . 7 Best Kill Streak 4 | 2 4 Combat Bots Only 4 | . 4 Max Kills in Single Turn 1 | 1 1 Gunslinging . | . . Exploded . | . . Melee . | . . Uniques/NPCs Destroyed . | . . Combat | -11 -10 -------- Run | Yrd Mat Hostile Shots Fired 94 | . 94 Missed 19 | . 19 Hits 75 | . 75 Projectile 75 | . 75 Critical Strikes 3 | . 3 Damage Taken 827 | . 827 Core 253 | . 253 Absorbed by Shields . | . . Core Remaining (%) 100 | 100 . Volleys Fired 83 | 17 66 Largest 2 | 2 2 Hottest 40 | 40 40 Shots Fired 155 | 34 121 Gun 155 | 34 121 Cannon . | . . Launcher . | . . Special . | . . Kinetic 155 | 34 121 Thermal . | . . Explosive . | . . Electromagnetic . | . . Robot Hit Streak 15 | 7 15 Robot Miss Streak 4 | 3 4 Penetration Max . | . . Secondary Targets 2 | . 2 Max Gunslinging Chain 1 | . 1 Shots Hit Robots 98 | 20 78 Core Hits 39 | 8 31 Critical Kills 1 | 1 . Critical Parts Destroyed 2 | . 2 Critical Strikes 3 | 1 2 Destroy 3 | 1 2 Melee Attacks . | . . Impact . | . . Slashing . | . . Piercing . | . . Sneak Attacks . | . . Combat Hostiles . | . . Follow-up Attacks . | . . Damage Inflicted 797 | 165 632 Guns 791 | 165 626 Cannons . | . . Explosions . | . . Melee . | . . Ramming 6 | . 6 Kinetic 791 | 165 626 Thermal . | . . Explosive . | . . Electromagnetic . | . . Impact . | . . Slashing . | . . Piercing . | . . Highest Corruption . | . . Average Corruption . | . . Corruption Purged . | . . Corruption Blocked . | . . Overload Shots . | . . Overflow Damage . | . . Projectiles . | . . Explosions . | . . Melee . | . . Knockbacks . | . . Impact . | . . Kinetic . | . . Secondary . | . . Self-Inflicted Damage . | . . Shots . | . . Rammed 2 | . 2 Targets Rammed 2 | . 2 Kicked . | . . Crushed . | . . Highest Temperature 61 | . 61 Average Temperature 14 | . 14 Received Heat Transfer 387 | . 387 Siege Activations . | . . Martial Activations . | . . Shielding Activations . | . . Robots Disrupted . | . . Combat Hostiles . | . . Robots Corrupted . | . . Combat Hostiles . | . . Parts Fried . | . . Impact Corruptions . | . . Robots Melted . | . . Combat Hostiles . | . . Parts Melted . | . . Heat Transferred . | . . Parts Sabotaged . | . . Parts Stolen . | . . Parts Stripped . | . . Power Chain Reactions . | . . Alert | -11 -10 ------- Run | Yrd Mat Maximum Alert Level . | . . Low Security (%) 100 | 100 100 Level 1 . | . . Level 2 . | . . Level 3 . | . . Level 4 . | . . Level 5 . | . . High Security . | . . Max Security . | . . Peak Influence 151 | 10 151 Initial . | . . Average 14 | 1 16 Influence Increases 345 | 20 325 Destroy 0b10 Robot/C 200 | . 200 Destroy 0b10 Robot/NC 30 | 20 10 Destroy Leader 40 | . 40 Lose Combat Pursuer 75 | . 75 Influence Decreases 200 | 20 180 Time Decay 170 | 20 150 Lost Part 30 | . 30 Squads Dispatched 1 | . 1 Investigation . | . . Extermination . | . . Reinforcement 1 | . 1 Assault . | . . Garrison . | . . Intercept . | . . Searches Triggered . | . . Construction Impeded . | . . Haulers Reinforced . | . . Active Scanning Responses . | . . Cargo Convoy Interrupts . | . . Stealth | -11 -10 --------- Run | Yrd Mat Distress Signals 2 | . 2 Communications Jammed . | . . Distress Signals . | . . Times Spotted 20 | . 20 Peak Tracking Total 7 | . 7 Tactical Retreats 2 | . 2 Traps | -11 -10 ------- Run | Yrd Mat Traps Triggered . | . . Indirectly . | . . Trap Hack Attempts . | . . Triggered . | . . Disarmed . | . . Reprogrammed . | . . Reused . | . . Traps Extracted . | . . Installed . | . . Triggered . | . . Machines | -11 -10 ---------- Run | Yrd Mat Machines Disabled . | . . Max in Single Turn . | . . Machines Repaired . | . . Machines Dismantled . | . . Machines Sabotaged . | . . Overloaded Fab Kills . | . . Hacking | -11 -10 --------- Run | Yrd Mat Machines Accessed . | . . Terminals . | . . Fabricators . | . . Repair Stations . | . . Recycling Units . | . . Scanalyzers . | . . Garrison Access . | . . Total Hacks . | . . Successful . | . . Failed . | . . Catastrophic . | . . Database Lockouts . | . . Manual . | . . Terminals . | . . Fabricators . | . . Repair Stations . | . . Recycling Units . | . . Scanalyzers . | . . Garrison Access . | . . Terminal Hacks . | . . Fabricator Hacks . | . . Repair Station Hacks . | . . Recycling Unit Hacks . | . . Scanalyzer . | . . Garrison Access Hacks . | . . Unauthorized Hacks . | . . Terminals . | . . Fabricators . | . . Repair Stations . | . . Recycling Units . | . . Scanalyzers . | . . Garrison Access . | . . Data Cores Recovered . | . . Used . | . . Hacking Detections . | . . Full Trace Events . | . . Feedback Events . | . . Feedback Blocked . | . . Robot Schematics Acquired . | . . Robots Built . | . . Authchips . | . . Time . | . . Total Robot Build Rating . | . . Part Schematics Acquired . | . . Parts Built . | . . Authchips . | . . Time . | . . Total Part Build Rating . | . . Part Studies Acquired . | . . Parts Repaired . | . . Time . | . . Parts Recycled . | . . Recycled Matter . | . . Retrieved Matter . | . . Retrieved Components . | . . Parts Scanalyzed . | . . Part Schematics Acquired . | . . Parts Damaged . | . . Bothacking | -11 -10 ------------ Run | Yrd Mat Used RIF Installer . | . . Robots Hacked . | . . Non-combat . | . . Combat . | . . Robot Hacks Applied . | . . Relay Couplers Released . | . . Fabnet Peak Effective % . | . . Robots Rewired . | . . Allies Hacked . | . . Hacks Repelled . | . . Allies | -11 -10 -------- Run | Yrd Mat Total Allies . | . . Largest Group . | . . Highest-Rated Group . | . . Highest-Rated Ally . | . . Total Orders . | . . Ally Attacks . | . . Total Damage . | . . Kills . | . . Allies Corrupted . | . . Allies Melted . | . . Intel | -11 -10 ------- Run | Yrd Mat Active Infowar (turns) 747 | 23 724 Seismic 747 | 23 724 Robot Analysis Total . | . . Derelict Logs Recovered . | . . Drone Launches . | . . Drone Recoveries . | . . Exploration | -11 -10 ------------- Run | Yrd Mat Turns Passed 1301 | 235 1066 Spaces Moved 382 | 113 269 Core 3 | 2 1 Treads 379 | 111 268 Legs . | . . Wheels . | . . Hover . | . . Flight . | . . Fastest Speed 50 | 50 160 Average Speed 274 | 158 323 Slowest Speed 1350 | 160 1350 Overloaded Moves . | . . Propulsion Burnouts . | . . Robots Hopped . | . . Potential Cave-ins . | . . Cave-ins Triggered . | . . Exploration Rate (%) 18 | 7 29 Regions Visited 1 Branch Regions . Pre-discovered Areas . | . . Known Exits Taken . | . . Unknown Exits Taken 1 | 1 . Scrap Searched . | . . Spaces Dug . | . . Terrain Destroyed . | . . Melee . | . . Projectile . | . . AOE . | . . Terrain Rammed . | . . Walls Destroyed . | . . Machines Disabled . | . . Actions | -11 -10 --------- Run | Yrd Mat Total 501 | 138 363 Wait 12 | . 12 Move 381 | 112 269 Hop . | . . Pick Up 10 | 1 9 Fast Attach 8 | 7 1 Attach . | . . Detach . | . . Swap 4 | 1 3 Drop 1 | . 1 Fire 83 | 17 66 Melee . | . . Ram . | . . Kick . | . . Crush 2 | . 2 Escape Stasis . | . . Rewire . | . . Trap . | . . Miscellaneous . | . . Route ------- -11/Scrapyard -10/Materials History --------- Turn | Location | Event 9 | -11/Scrapyard | Discovered new exit (range 15) 236 | -11/Scrapyard | Entered Materials 311 | -10/Materials | Build established: Mutant 1266 | -10/Materials | Core integrity fell below 50% 1286 | -10/Materials | Core integrity fell below 20% 1298 | -10/Materials | Lost 3 parts (1p1n1w) 1302 | -10/Materials | Destroyed by G-34 Mercenary with Small Laser Last Messages --------------- 01265_ K-01 Serf collects debris. 01265_ G-47 Trooper destroyed. 01266_ Acquired 2 matter. 01266_ K-01 Serf collects debris. 01267_ Lgt. Assault Rifle destroyed. 01268_ K-01 Serf collects debris. 01269_ Acquired 1 matter. 01269_ K-01 Serf collects debris. 01271_ Acquired 1 matter. 01271_ G-34 Mercenary destroyed. 01272_ Acquired 1 matter. 01272_ K-01 Serf cleans the Terminal. 01278_ K-01 Serf collects debris. 01286_ W-16 Scout sends out distress signal. 01286_ K-01 Serf cleans the Electrolysis Chamber. 01287_ Acquired Lgt. Nuclear Core. 01287_ K-01 Serf collects debris. 01290_ G-34 Mercenary destroyed. 01292_ K-01 Serf collects debris. 01300_ K-01 Serf cleans the Electrolysis Chamber. Map ----- +----------------------------------------------------+ | ?????????????????????????????????????????????????? | | ?????????????????????????????????????????????????? | | ?????????????????????????????????????????????????? | | ?????????????????????????????????????????????????? | | ?????????????????????????????????????????????????? | | ?????????????????????????????????????????????????? | | ?????????????????????????????????????????????????? | | ?????????????????????????????????????????????????? | | ?????????????????????????????????????????????????? | | ?????????????????????????????????????????????????? | | ??????????????????????? ???????????????????????? | | ??????????????????????# #??????????????????????? | | ??????????????????????# #??????????????????????? | | ??????????????????????# #??????????????????????? | | ??????????????????????# #??????????????????????? | | ??????????????????????# #??????????????????????? | | ???????????????#??????# #??????????????????????? | | ???????????????# ?????# #??????????????????????? | | ??????????? ??? ???## ##?????????????????????? | | ?????????? ###+### ######## ??????????? | | ?????????? "" ??????????? | | ??????????? T ???????????? | | ???????????????? t ????????????????? | | ?????????????????????# !=% #???######????????????? | | ?????????????????#######g####### #????????????? | | ?????????????????# =%@%[!%*# !#????????????? | | ?????????????????# """ """! ""=+ #????????????? | | ?????????????????# """ """k T" # #????????????? | | ?????????????????# """ """ " # #????????????? | | ?????????????????# w # #????????????? | | ?????????????????# [ # #????#???????? | | ?????????????###########+####### #??? #???????? | | ?????????????# # #?????# #?? #???????? | | ?????????????# # #########+### +???????? | | ?????????????# * # * #???????? | | ?????????????# *** + #???????? | | ?????????????# *** # #???????? | | ?????????????# ### ###########???????? | | ?????????????# #?# #?????????????????? | | ?????????????# = #?# ##############????? | | ?????????????###########?# ^ ????? | | ???????????????????#######+# ???? | | ??????????????###### # ^ ???? | | ??????????????# ## """ # ^ ???? | | ??????????????# # """ # #############?????? | | ??????????????# # """ # +%[ """ #?????????? | | ??????????????# # + #* "R" #?????????? | | ??????????????# #####+### # " " #?????????? | | ??????????????# #??## ### # #?????????? | | ??????????????# #### #= #?????????? | +----------------------------------------------------+ Best States ------------- Heat Dissipation 25 Energy Generation 14 Energy Capacity 250 Matter Stores 300 Matter Capacity 300 Sight Range 16 Terrain Scan Density 10 Evasion (%) 40 Recoil Reduction 2 Item Schematics ----------------- None Robot Schematics ------------------ None Fabricated ------------ Nothing Repaired ---------- Nothing Studied --------- None Alien Tech Used ----------------- None Achievements -------------- None Challenges ------------ None Game ------ Seed GhostCannonShearcannon Manual? 0 Play Time 00:07:15 Cumulative 28.6 hours Start 2026.01.29 @ 21:54:43 End 2026.01.29 @ 21:58:49 Sessions 1 Manual Loads 0 Difficulty Rogue Special Mode None Game No. 61 Rogue 61 Adventurer 0 Explorer 0 Win Type - Total 0 Types 0/0/0/0/0/0/0/0/0/0 Lore% 16 Gallery% 22 Achievement% 19 Wizard Run 0 Options --------- Layout 0 ASCII 0 Keyboard 1 Movement Arrows Keybinds 0 Fullscreen 1 Font 18/Smallcaps Map View 38x25 Zoom Use 100% Tactical HUD 1 Map Filters NONE Filters NONE Steam 1 RUN: 86cb3b27-bc87-4845-91f1-3691b7ed791d